bitfinex-derivatives/quotes_SOLF0:USTF0_20250626
["timestamp","ask_amount","ask_price","bid_price","bid_amount"]
[1750900927740,35.0,143.94,143.87,38.45898489]
[1750900928047,3.47898489,143.93,143.87,34.98]
[1750900928247,6.9447,143.91,143.86,6.9464]
[1750900929447,6.9447,143.91,143.87,6.9462]
[1750900930449,3.47898489,143.93,143.86,10.42548489]
[1750900930450,6.9448,143.9,143.86,10.42548489]
[1750900932448,6.9448,143.9,143.87,6.9462]
[1750900932650,6.9445,143.91,143.87,6.9462]
[1750900932945,6.9445,143.91,143.86,3.47898489]
[1750900934245,6.9445,143.91,143.87,6.946]
[1750900936744,38.47898489,143.94,143.86,3.47898489]
[1750900936949,3.47898489,143.9,143.84,34.98]
[1750900937250,6.9465,143.87,143.83,10.42708489]
[1750900937647,2.4337,143.89,143.83,10.42708489]
[1750900938645,6.9465,143.87,143.83,10.42708489]
[1750900939451,6.9465,143.87,143.84,6.9475]
[1750900939651,6.9465,143.87,143.83,3.47898489]
[1750900940163,6.9465,143.87,143.83,10.42688489]
[1750900940349,6.9465,143.87,143.83,3.47898489]
[1750900941354,6.9465,143.87,143.84,6.9476]
[1750900941751,6.9458,143.88,143.84,6.9476]
[1750900942349,6.9463,143.87,143.84,6.9476]
[1750900944255,6.9463,143.87,143.83,10.42698489]
[1750900945460,6.9469,143.86,143.82,6.9485]
[1750900948261,6.9474,143.85,143.81,45.38788489]
[1750900948959,6.9474,143.85,143.82,6.9485]
[1750900950645,6.9478,143.84,143.81,38.43898489]
[1750900950849,5.32410128,143.88,143.81,38.43898489]
[1750900951050,8.80309044,143.87,143.8,37.3151]
[1750900951251,6.9479,143.84,143.8,44.2645]
[1750900951453,6.9479,143.84,143.8,37.3151]
[1750900953256,6.9479,143.84,143.81,6.949]
[1750900956463,6.9482,143.83,143.8,44.2645]
[1750900958463,3.47898489,143.87,143.8,44.2645]
[1750900958464,6.9479,143.84,143.8,44.2645]
[1750900961566,6.9474,143.85,143.81,3.47898489]
[1750900961769,2.4337,143.89,143.81,3.47898489]
[1750900962070,10.10132195,143.88,143.82,6.9483]
[1750900962260,6.947,143.86,143.82,6.9483]
[1750900967263,6.9472,143.85,143.82,6.9483]
[1750900967464,6.9472,143.85,143.81,10.42788489]
[1750900968570,6.9472,143.85,143.82,6.9486]
[1750900971371,6.9477,143.84,143.81,10.42788489]
[1750900974076,6.9482,143.83,143.81,3.47898489]
[1750900974273,4.79801306,143.87,143.8,37.3151]
[1750900974578,48.6165694,143.86,143.78,3.47898489]
[1750900974776,6.9489,143.82,143.79,6.95]
[1750900975074,38.45898489,143.86,143.78,3.47898489]
[1750900975271,5.35993718,143.85,143.78,10.42938489]
[1750900975469,38.45898489,143.86,143.78,10.42938489]
[1750900975669,5.36069505,143.85,143.78,10.42938489]
[1750900975865,6.9491,143.82,143.78,10.42938489]
[1750900980584,8.2764669,143.84,143.77,6.9509]
[1750900980773,5.35919298,143.83,143.76,38.23898489]
[1750900980973,48.37880998,143.82,143.75,2.3022]
[1750900981182,6.951,143.78,143.75,2.3022]
[1750900981393,38.23898489,143.82,143.75,2.3022]
[1750900981682,6.9519,143.76,143.71,53.63640924]
[1750900982085,3.47898489,143.8,143.71,53.63640924]
[1750900982277,6.9512,143.77,143.73,6.9526]
[1750900982884,6.9508,143.78,143.74,6.9522]
[1750900984290,6.9504,143.79,143.73,3.47898489]
[1750900985288,6.9504,143.79,143.75,6.9517]
[1750900986089,6.9506,143.78,143.74,10.43128489]
[1750900987891,6.9506,143.78,143.75,6.952]
[1750900990596,6.9506,143.78,143.74,10.43128489]
[1750900990793,6.9511,143.77,143.74,6.9523]
[1750900991095,34.76,143.78,143.72,3.47898489]
[1750900991887,34.76,143.78,143.71,37.1605]
[1750900992192,6.9516,143.76,143.73,6.9529]
[1750900993591,6.9512,143.77,143.71,37.1605]
[1750900994388,6.9512,143.77,143.73,6.9526]
[1750900995095,6.9515,143.76,143.72,6.9533]
[1750900995287,3.47898489,143.77,143.68,40.62358489]
[1750900995681,3.47898489,143.73,143.68,34.76]
[1750900996088,6.9535,143.72,143.69,6.9548]
[1750900996394,3.47898489,143.73,143.66,4.7289]
[1750900996594,3.47898489,143.73,143.66,2.2797]
[1750900996892,6.954,143.71,143.67,6.9555]
[1750900997087,5.83378489,143.73,143.67,6.9555]
[1750900997282,5.83378489,143.73,143.68,6.9554]
[1750900998191,6.9543,143.71,143.68,6.9554]
[1750900998392,6.9543,143.71,143.67,6.9557]
[1750900999688,3.47898489,143.71,143.65,34.76]
[1750901000086,6.9554,143.69,143.65,41.7165]
[1750901000283,3.47898489,143.71,143.65,34.76]
[1750901000693,6.9558,143.68,143.64,6.9572]
[1750901001088,34.78,143.7,143.63,2.2797]
[1750901001289,6.9562,143.67,143.63,2.2797]
[1750901001590,3.47898489,143.69,143.63,2.2797]
[1750901003100,6.9555,143.68,143.64,6.9569]
[1750901003993,6.9555,143.68,143.65,6.9568]
[1750901004195,6.9555,143.68,143.63,2.2797]
[1750901004591,6.9555,143.68,143.64,6.957]
[1750901004792,34.78,143.7,143.64,3.47898489]
[1750901004997,34.78,143.7,143.66,3.47898489]
[1750901006901,41.7346,143.7,143.66,3.47898489]
[1750901007495,41.7346,143.7,143.66,6.9563]
[1750901009502,41.7346,143.7,143.67,6.9558]
[1750901011097,34.78,143.75,143.69,3.48211209]
[1750901011798,34.78,143.75,143.71,6.9535]
[1750901011994,34.78,143.75,143.69,3.48211209]
[1750901012195,34.78,143.75,143.7,6.9541]
[1750901012804,6.9525,143.74,143.7,6.9541]
[1750901014099,34.78,143.75,143.69,3.48211209]
[1750901014304,41.732,143.75,143.71,6.9537]
[1750901015005,34.78,143.75,143.72,6.9534]
[1750901015505,34.78,143.75,143.69,3.48211209]
[1750901015705,34.78,143.75,143.73,6.9529]
[1750901016003,34.78,143.75,143.69,3.48211209]
[1750901017208,34.78,143.75,143.72,6.9533]
[1750901017405,34.78,143.75,143.69,3.48211209]
[1750901018210,41.732,143.75,143.71,6.9538]
[1750901018703,34.78,143.75,143.69,3.48211209]
[1750901019008,34.78,143.75,143.72,6.9534]
[1750901022105,34.78,143.75,143.68,5.93401209]
[1750901023314,41.7322,143.75,143.71,6.9539]
[1750901026907,41.7322,143.75,143.72,6.9534]
[1750901028714,41.7322,143.75,143.71,6.9537]
[1750901032219,34.78,143.75,143.72,6.9534]
[1750901032715,34.78,143.75,143.7,3.48211209]
[1750901033216,6.9517,143.76,143.7,38.26211209]
[1750901033518,2.4502,143.77,143.7,38.26211209]
[1750901033818,34.78,143.78,143.72,3.48211209]
[1750901034318,34.78,143.78,143.75,6.952]
[1750901034712,34.78,143.78,143.72,3.48211209]
[1750901034907,41.7306,143.78,143.73,6.9526]
[1750901035126,34.78,143.78,143.72,3.48211209]
[1750901035412,38.26211209,143.78,143.7,45.21631209]
[1750901035917,6.9528,143.74,143.7,41.7342]
[1750901036719,6.9531,143.73,143.7,34.78]
[1750901040721,6.9531,143.73,143.7,41.7344]
[1750901041022,6.9527,143.74,143.7,41.7344]
[1750901042317,6.9522,143.75,143.71,3.48211209]
[1750901042812,6.9522,143.75,143.71,10.43581209]
[1750901049527,34.78,143.78,143.71,3.48211209]
[1750901049736,34.78,143.78,143.73,3.48211209]
[1750901050129,2.4684,143.81,143.75,3.48211209]
[1750901050330,757.28144571,143.83,143.75,3.48211209]
[1750901050631,12.21711959,143.82,143.77,3.48211209]
[1750901050827,6.9489,143.82,143.77,3.48211209]
[1750901051332,6.9489,143.82,143.78,6.9503]
[1750901054133,6.9492,143.81,143.77,10.43301209]
[1750901054630,6.9496,143.8,143.77,3.48211209]
[1750901054836,6.9496,143.8,143.76,6.9514]
[1750901054837,3.48211209,143.81,143.74,34.78]
[1750901055135,5.27650223,143.8,143.74,34.78]
[1750901055435,6.9509,143.78,143.74,41.7323]
[1750901058732,6.9509,143.78,143.74,6.9523]
[1750901059034,38.24211209,143.79,143.73,3.48211209]
[1750901059229,5.27733464,143.78,143.73,3.48211209]
[1750901059429,38.24211209,143.79,143.73,6.9529]
[1750901059633,5.27718494,143.78,143.73,6.9529]
[1750901059835,38.24211209,143.79,143.73,6.9529]
[1750901060032,5.27718064,143.78,143.73,6.9529]
[1750901060232,38.24211209,143.79,143.73,6.9529]
[1750901060932,6.9513,143.77,143.73,6.9529]
[1750901063332,6.9513,143.77,143.74,6.9525]
[1750901064938,38.24211209,143.79,143.74,6.9525]
[1750901064939,6.9507,143.78,143.74,6.9525]
[1750901065139,6.9507,143.78,143.75,10.43401209]
[1750901065734,6.9507,143.78,143.75,3.48211209]
[1750901067235,6.9507,143.78,143.75,10.43411209]
[1750901067538,41.7102,143.79,143.75,10.43411209]
[1750901067740,34.76,143.79,143.76,6.9514]
[1750901069828,6.9498,143.8,143.76,6.9514]
[1750901070233,5.72471209,143.84,143.75,3.48211209]
[1750901070532,34.76,143.83,143.75,3.48211209]
[1750901070736,34.76,143.83,143.77,3.48211209]
[1750901071243,12.23660932,143.82,143.78,6.9502]
[1750901071441,6.9489,143.82,143.78,6.9502]
[1750901074937,6.9489,143.82,143.79,6.95]
[1750901075142,6.9492,143.81,143.77,3.48211209]
[1750901075545,6.9488,143.82,143.78,6.9503]
[1750901078550,6.9492,143.81,143.78,6.9503]
[1750901078843,38.24211209,143.83,143.76,34.76]
[1750901079148,6.9499,143.8,143.76,34.76]
[1750901079443,38.24211209,143.83,143.76,34.76]
[1750901079642,3.48211209,143.81,143.76,34.76]
[1750901080033,6.9506,143.78,143.76,34.76]
[1750901081849,6.9506,143.78,143.75,10.43381209]
[1750901084652,3.48211209,143.81,143.73,38.24211209]
[1750901085650,6.9503,143.79,143.73,38.24211209]
[1750901086252,6.9503,143.79,143.73,51.208973]
[1750901086753,6.9503,143.79,143.75,6.9517]
[1750901089057,6.9508,143.78,143.74,6.9524]
[1750901090452,3.4808358,143.78,143.71,12.96686091]
[1750901090656,5.33546153,143.77,143.7,38.2408358]
[1750901090859,6.9524,143.75,143.71,6.9538]
[1750901092354,6.9526,143.74,143.71,6.9538]
[1750901092749,6.9528,143.74,143.7,41.7144]
[1750901095864,6.9532,143.73,143.7,6.9544]
[1750901097567,8.21359483,143.78,143.71,10.43569483]
[1750901097766,5.33317693,143.77,143.71,10.43569483]
[1750901097967,8.21359483,143.78,143.71,10.43569483]
[1750901098266,6.9523,143.75,143.71,10.43569483]
[1750901100369,6.9516,143.76,143.72,6.9531]
[1750901100672,34.76,143.79,143.73,3.48219483]
[1750901100969,6.9513,143.77,143.73,10.43489483]
[1750901101561,41.7103,143.79,143.75,3.48219483]
[1750901101766,161.27689064,143.82,143.77,3.48219483]
[1750901102375,6.9494,143.81,143.78,6.9505]
[1750901103580,6.9494,143.81,143.77,10.43309483]
[1750901105673,168.22569064,143.82,143.78,6.9505]
[1750901107075,6.9492,143.81,143.77,10.43309483]
[1750901107268,34.74,143.82,143.77,3.48219483]
[1750901108076,6.9494,143.81,143.77,10.43299483]
[1750901110372,41.6888,143.82,143.78,6.9506]
[1750901114478,41.6888,143.82,143.76,34.74]
[1750901114479,34.74,143.82,143.79,3.48219483]
[1750901114672,6.9483,143.83,143.79,3.48219483]
[1750901115067,11.73549406,143.84,143.8,6.9495]
[1750901115273,5.34125687,143.83,143.79,3.48219483]
[1750901115581,34.72,143.85,143.81,3.48219483]
[1750901116379,6.947,143.86,143.82,6.9486]
[1750901116777,43.06419483,143.88,143.81,3.48219483]
[1750901116778,39.582,143.88,143.81,3.48219483]
[1750901116974,5.34052776,143.87,143.83,3.48219483]
[1750901117282,8.82272259,143.86,143.8,34.72]
[1750901117475,5.34052776,143.85,143.8,34.72]
[1750901117677,6.9481,143.84,143.8,41.6695]
[1750901121078,6.9481,143.84,143.77,39.5512]
[1750901121079,3.48219483,143.84,143.77,39.5512]
[1750901121284,38.20219483,143.84,143.77,37.1965]
[1750901121886,6.9494,143.81,143.77,37.1965]
[1750901122683,34.72,143.84,143.78,3.48219483]
[1750901123280,38.20219483,143.84,143.78,3.48219483]
[1750901123785,6.9489,143.82,143.78,10.43259483]
[1750901125882,6.9489,143.82,143.79,6.95]
[1750901128587,3.48219483,143.8,143.74,2.4648]
[1750901129586,3.48219483,143.8,143.75,6.9517]
[1750901129587,6.9506,143.78,143.75,6.9517]
[1750901130887,4.8528,143.83,143.76,3.48219483]
[1750901131088,5.34748147,143.82,143.76,3.48219483]
[1750901131288,4.8528,143.83,143.76,3.48219483]
[1750901131484,6.9494,143.81,143.77,6.9508]
[1750901132392,3.48219483,143.82,143.74,2.4648]
[1750901132687,3.48219483,143.78,143.72,2.2749]
[1750901132887,38.18219483,143.78,143.7,51.14905574]
[1750901133185,38.18219483,143.78,143.72,6.953]
[1750901133186,6.9518,143.76,143.72,6.953]
[1750901134687,6.9522,143.75,143.71,6.9538]
[1750901134886,6.9522,143.75,143.7,38.18219483]
[1750901135588,6.9517,143.76,143.72,6.9532]
[1750901135889,38.18219483,143.78,143.7,38.18219483]
[1750901136089,6.9512,143.77,143.73,6.9527]
[1750901137693,6.9516,143.76,143.72,10.43549483]
[1750901137893,6.9516,143.76,143.72,6.9533]
[1750901138587,38.18219483,143.78,143.72,6.9533]
[1750901139087,6.9525,143.75,143.71,6.9536]
[1750901140088,6.9525,143.75,143.72,6.9534]
[1750901140288,6.9517,143.76,143.72,6.9534]
[1750901140493,6.9517,143.76,143.71,3.48219483]
[1750901141600,6.9517,143.76,143.72,6.9533]
[1750901142700,4.7915,143.77,143.71,3.48219483]
[1750901142994,38.18219483,143.78,143.71,3.48219483]
[1750901143399,45.13309483,143.78,143.74,6.9522]
[1750901145101,41.6509,143.78,143.74,6.9522]
[1750901147903,41.6509,143.78,143.75,6.952]
[1750901148105,34.7,143.78,143.75,6.952]
[1750901148405,6.9502,143.79,143.75,6.952]
[1750901148912,6.9498,143.8,143.76,6.9514]
[1750901149709,6.9502,143.79,143.76,6.9514]
[1750901150111,6.9502,143.79,143.75,6.9519]
[1750901151312,6.9502,143.79,143.76,6.9515]
[1750901151705,6.9498,143.8,143.76,6.9515]
[1750901152508,3.48219483,143.8,143.74,34.72]
[1750901153113,6.9509,143.78,143.74,41.6722]
[1750901156319,6.9509,143.78,143.75,6.952]
[1750901157022,6.9502,143.79,143.76,6.9515]
[1750901157218,34.72,143.81,143.74,38.20219483]
[1750901157823,6.9498,143.8,143.74,38.20219483]
[1750901158924,6.9498,143.8,143.76,6.9512]
[1750901159524,6.9498,143.8,143.77,6.951]
[1750901159817,34.72,143.81,143.76,3.48219483]
[1750901160323,600.42,143.84,143.74,47.68686091]
[1750901160324,41.6678,143.84,143.78,3.48219483]
[1750901160523,34.72,143.84,143.8,3.48219483]
[1750901161825,34.72,143.84,143.81,6.9488]
[1750901162025,34.72,143.84,143.8,3.48219483]
[1750901162326,40.45559483,143.87,143.8,3.48219483]
[1750901162519,12.28867547,143.86,143.82,6.9485]
[1750901162720,6.947,143.86,143.82,6.9485]
[1750901164017,40.45559483,143.87,143.81,6.949]
[1750901164221,5.35375373,143.86,143.8,3.48219483]
[1750901164426,5.35375373,143.85,143.8,3.48219483]
[1750901164626,6.9472,143.85,143.81,6.9491]
[1750901167728,6.9472,143.85,143.82,6.9486]
[1750901168228,6.9478,143.84,143.8,10.43159483]
[1750901168428,40.45559483,143.87,143.78,38.20219483]
[1750901168636,6.9485,143.83,143.78,38.20219483]
[1750901168829,3.48219483,143.85,143.78,38.20219483]
[1750901169128,36.9734,143.87,143.8,3.48219483]
[1750901169329,12.32245597,143.86,143.82,6.9484]
[1750901169531,6.947,143.86,143.82,6.9484]
[1750901172031,6.947,143.86,143.82,10.43059483]
[1750901172631,34.72,143.87,143.82,3.48219483]
[1750901172836,151.75353092,143.89,143.82,3.48219483]
[1750901173130,5.37172496,143.88,143.82,3.48219483]
[1750901173336,6.9461,143.88,143.84,6.9476]
[1750901173926,151.75353092,143.89,143.83,6.9479]
[1750901174430,6.9464,143.87,143.83,6.9479]
[1750901174627,34.7,143.89,143.84,3.48219483]
[1750901174832,37.0023,143.92,143.84,3.48219483]
[1750901175033,6.9446,143.91,143.86,3.48219483]
[1750901175237,6.9446,143.91,143.87,6.9461]
[1750901175629,6.9446,143.91,143.86,3.48219483]
[1750901175831,6.9446,143.91,143.86,38.18219483]
[1750901176732,6.9446,143.91,143.87,6.9461]
[1750901178539,6.944,143.92,143.86,38.18219483]
[1750901178838,34.7,143.95,143.88,3.48219483]
[1750901179340,6.9435,143.93,143.9,6.9447]
[1750901180744,6.9435,143.93,143.89,6.9451]
[1750901181733,34.7,143.95,143.85,62.0]
[1750901181734,4.7334,143.97,143.9,3.48219483]
[1750901181933,350.0,144.03,143.92,3.48219483]
[1750901181934,3.48219483,144.0,143.92,3.48219483]
[1750901182136,3.48219483,144.0,143.92,38.16219483]
[1750901182332,2.365,143.99,143.92,38.16219483]
[1750901182530,6.9416,143.97,143.92,45.10569483]
[1750901182734,2.365,143.99,143.92,45.10569483]
[1750901182948,34.68,143.98,143.92,38.16219483]
[1750901183242,41.6212,143.98,143.92,38.16219483]
[1750901183541,34.68,143.98,143.92,38.16219483]
[1750901183731,2.365,143.99,143.92,38.16219483]
[1750901183927,3.48219483,143.97,143.92,34.68]
[1750901184233,3.48219483,143.97,143.9,3.48219483]
[1750901184234,38.16219483,143.97,143.9,3.48219483]
[1750901184538,38.16219483,143.97,143.9,38.16219483]
[1750901184933,6.9424,143.95,143.91,6.9439]
[1750901189941,6.9419,143.96,143.92,6.9435]
[1750901190335,6.9419,143.96,143.92,10.42569483]
[1750901190736,41.6215,143.97,143.93,6.9432]
[1750901190936,6.9415,143.97,143.93,6.9432]
[1750901192442,40.53519483,144.0,143.94,6.9428]
[1750901192443,6.9409,143.98,143.94,6.9428]
[1750901192834,6.9405,143.99,143.95,6.9423]
[1750901193039,34.78,144.01,143.94,38.26219483]
[1750901193239,34.78,144.01,143.94,45.20489483]
[1750901193648,34.78,144.01,143.94,38.26219483]
[1750901194543,6.9405,143.99,143.95,6.942]
[1750901194945,6.941,143.98,143.94,45.20489483]
[1750901196248,6.9406,143.99,143.95,6.9423]
[1750901197250,6.9409,143.98,143.95,6.9423]
[1750901197752,34.78,144.01,143.96,6.9418]
[1750901198050,5.43463058,144.0,143.96,6.9418]
[1750901198238,34.78,144.01,143.96,6.9418]
[1750901198442,6.9406,143.99,143.95,6.9422]
[1750901199243,6.9412,143.98,143.94,41.7227]
[1750901199852,6.9412,143.98,143.95,6.9423]
[1750901201359,6.9406,143.99,143.96,6.9418]
[1750901201847,38.24219483,144.05,143.99,6.9403]
[1750901202052,5.4367458,144.04,143.99,6.9403]
[1750901202251,5.4367458,144.03,143.99,6.9403]
[1750901202551,6.9388,144.03,143.99,6.9403]
[1750901202751,43.080234,144.05,143.98,10.42289483]
[1750901202956,6.9396,144.01,143.98,10.42289483]
[1750901203656,38.24219483,144.05,143.98,38.24219483]
[1750901203851,5.43536397,144.04,143.98,38.24219483]
[1750901204048,5.43536397,144.03,143.98,38.24219483]
[1750901204250,38.24219483,144.05,143.98,38.24219483]
[1750901204451,5.43398055,144.04,143.98,38.24219483]
[1750901204650,6.9391,144.02,143.99,6.9402]
[1750901205854,6.9386,144.03,144.0,6.9399]
[1750901206058,5.43556051,144.02,144.0,6.9399]
[1750901206249,6.9386,144.03,144.0,6.9399]
[1750901206449,5.4355023,144.02,144.0,6.9399]
[1750901206656,6.9386,144.03,144.0,6.9399]
[1750901206855,5.4355023,144.02,144.0,6.9399]
[1750901207060,6.9386,144.03,143.99,6.9403]
[1750901207354,5.4355023,144.02,143.95,40.69699483]
[1750901207655,3.48219483,144.03,143.95,47.63899483]
[1750901207855,5.435872,144.02,143.95,47.63899483]
[1750901208056,6.9407,143.99,143.95,47.63899483]
[1750901208360,6.9407,143.99,143.96,6.9418]
[1750901209662,6.9407,143.99,143.95,45.18429483]
[1750901209857,6.941,143.98,143.95,41.7021]
[1750901210956,6.9405,143.99,143.96,6.9418]
[1750901211560,6.9413,143.98,143.95,41.7021]
[1750901214058,6.9406,143.99,143.95,41.7021]
[1750901214262,5.48561438,143.98,143.95,41.7021]
[1750901214465,6.9401,144.0,143.95,38.24219483]
[1750901214663,5.48596067,143.99,143.95,38.24219483]
[1750901214853,6.9401,144.0,143.96,6.9415]
[1750901215055,5.50755459,143.99,143.95,38.24219483]
[1750901215261,6.9401,144.0,143.95,38.24219483]
[1750901215461,34.76,144.01,143.97,6.9413]
[1750901215462,41.6997,144.01,143.97,6.9413]
[1750901215654,5.51027434,144.0,143.97,6.9413]
[1750901215860,41.6997,144.01,143.97,6.9413]
[1750901216050,5.51027434,144.0,143.97,6.9413]
[1750901216259,41.6997,144.01,143.97,6.9413]
[1750901216459,5.51384786,144.0,143.97,6.9413]
[1750901216758,5.51384786,143.99,143.97,6.9413]
[1750901216956,41.6997,144.01,143.97,6.9413]
[1750901217165,5.51402716,144.0,143.97,6.9413]
[1750901217366,5.51402716,143.99,143.97,6.9413]
[1750901217563,41.6997,144.01,143.97,6.9413]
[1750901217764,5.51849303,144.0,143.97,6.9413]
[1750901217956,5.51849303,143.99,143.97,6.9413]
[1750901218264,41.6997,144.01,143.98,6.9408]
[1750901218462,5.52198323,144.0,143.98,6.9408]
[1750901218664,5.52198323,143.99,143.98,6.9408]
[1750901218858,11.8172671,144.03,143.99,10.42219483]
[1750901219163,5.52123228,144.02,143.99,10.42219483]
[1750901219362,6.9388,144.03,143.99,10.42219483]
[1750901219363,5.52123228,144.01,143.99,10.42219483]
[1750901219661,5.52123228,144.0,143.99,10.42219483]
[1750901220165,6.9388,144.03,143.99,10.42219483]
[1750901220166,6.9388,144.03,144.0,6.9399]
[1750901220356,5.50800057,144.02,144.0,6.9399]
[1750901220556,5.50800057,144.01,144.0,6.9399]
[1750901221663,34.76,144.04,144.01,6.9393]
[1750901221865,5.51138847,144.03,144.01,6.9393]
[1750901222065,5.51138847,144.02,144.01,3.48219483]
[1750901222254,9.39320488,144.06,144.02,6.9387]
[1750901222461,10.39839374,144.05,144.02,6.9387]
[1750901222766,5.51246838,144.04,144.02,6.9387]
[1750901222958,5.51246838,144.03,144.02,6.9387]
[1750901223467,4.88592524,144.06,144.03,6.9382]
[1750901223657,5.52365814,144.05,144.03,10.42039483]
[1750901223858,5.52365814,144.04,144.03,10.42039483]
[1750901224867,4.88715453,144.07,144.03,10.42039483]
[1750901225166,5.52406418,144.06,144.03,10.42039483]
[1750901225365,5.52406418,144.05,144.03,10.42039483]
[1750901225661,6.9366,144.07,144.03,10.42039483]
[1750901225867,5.52384768,144.06,144.03,10.42039483]
[1750901226066,5.52384768,144.05,144.03,10.42039483]
[1750901226258,5.5255605,144.04,144.03,10.42039483]
[1750901226458,6.9366,144.07,144.03,10.42039483]
[1750901226757,5.52379842,144.06,144.03,10.42039483]
[1750901226963,5.52379842,144.05,144.03,10.42039483]
[1750901227157,6.9366,144.07,144.03,10.42039483]
[1750901227562,6.9366,144.07,144.03,45.12039483]
[1750901228961,3.48219483,144.05,143.98,34.7]
[1750901229162,5.54478482,144.04,143.97,38.18219483]
[1750901229364,5.54478482,144.03,143.97,38.18219483]
[1750901229567,38.18219483,144.05,143.97,38.18219483]
[1750901229766,38.18219483,144.05,143.97,45.12339483]
[1750901229767,5.54782512,144.04,143.97,45.12339483]
[1750901229972,9.03001995,144.03,143.97,34.7]
[1750901230165,5.54782512,144.02,143.97,34.7]
[1750901230470,6.9407,143.99,143.95,10.47169483]
[1750901230767,3.48219483,144.06,143.97,3.48219483]
[1750901230969,3.48219483,144.06,143.95,6.9895]
[1750901230970,6.9381,144.04,144.0,6.9395]
[1750901231160,3.48219483,144.06,143.99,3.48219483]
[1750901231366,5.5482522,144.05,143.99,3.48219483]
[1750901231566,5.54824726,144.04,144.01,6.9392]
[1750901231868,3.48219483,144.06,144.01,6.9392]
[1750901232167,5.53199926,144.05,144.01,6.9392]
[1750901232373,5.53199926,144.04,144.01,6.9392]
[1750901232568,3.48219483,144.06,144.01,6.9392]
[1750901232770,5.5330202,144.05,144.01,6.9392]
[1750901232970,5.5330202,144.04,144.01,6.9392]
[1750901233278,6.9381,144.04,144.01,6.9392]
[1750901233577,6.9381,144.04,144.0,6.9399]
[1750901236170,3.48219483,144.06,143.98,34.7]
[1750901236364,3.48219483,144.04,143.98,34.7]
[1750901236876,6.9394,144.02,143.98,41.6408]
[1750901237868,6.9394,144.02,143.99,6.9403]
[1750901238264,6.9386,144.03,143.99,6.9403]
[1750901239770,3.48219483,144.04,143.99,6.9403]
[1750901239771,6.9391,144.02,143.99,6.9403]
[1750901244579,6.9387,144.03,144.0,6.9399]
[1750901244985,6.9387,144.03,143.98,34.7]
[1750901245179,6.9387,144.03,143.99,6.9403]
[1750901245381,6.9391,144.02,143.98,34.7]
[1750901245574,6.9391,144.02,143.98,41.6407]
[1750901246784,5.54019779,144.01,143.94,34.7]
[1750901246986,3.48219483,143.98,143.91,34.7]
[1750901247184,6.9434,143.93,143.9,4.7293]
[1750901247490,38.18219483,143.96,143.89,2.4449]
[1750901247987,38.18219483,143.96,143.89,5.92709483]
[1750901248292,5.54142929,143.95,143.89,5.92709483]
[1750901248588,6.9432,143.94,143.9,6.9446]
[1750901249085,6.9426,143.95,143.9,6.9446]
[1750901249276,38.18219483,143.96,143.89,5.92709483]
[1750901249472,5.53550823,143.95,143.89,5.92709483]
[1750901249788,34.7,143.96,143.93,6.943]
[1750901250286,34.7,143.96,143.89,5.92709483]
[1750901250986,41.642,143.96,143.92,6.9435]
[1750901251189,41.642,143.96,143.89,5.92709483]
[1750901251383,34.7,143.96,143.89,5.92709483]
[1750901252079,34.7,143.96,143.91,3.48219483]
[1750901252285,3.48219483,143.98,143.91,3.48219483]
[1750901252584,10.42349483,143.98,143.93,6.9433]
[1750901252986,5.47047012,143.97,143.93,6.9433]
[1750901253186,10.42349483,143.98,143.93,6.9433]
[1750901255890,10.42349483,143.98,143.94,6.9427]
[1750901256897,10.42349483,143.98,143.94,6.9424]
[1750901260507,6.9413,143.98,143.94,6.9424]
[1750901263409,45.14279483,143.99,143.95,6.9423]
[1750901264203,45.14279483,143.99,143.96,6.9419]
[1750901264403,9.3493,144.01,143.93,3.48219483]
[1750901264604,35.02,144.02,143.95,3.48219483]
[1750901264912,35.02,144.02,143.97,3.48219483]
[1750901265616,35.02,144.02,143.99,6.9401]
[1750901269511,122.67723584,144.04,143.99,3.48219483]
[1750901269905,122.67723584,144.04,144.02,6.9388]